[Event "KAZ-ch Women 2019"]
[Site "Almaty"]
[Date "2019.04.25"]
[Round "5.4"]
[White "Kairbekova, Amina"]
[Black "Nasybullina, Alfia"]
[Result "1-0"]
[ECO "B00"]
[WhiteElo "1954"]
[BlackElo "2065"]
[Annotator "NA RC"]
[PlyCount "115"]
[EventDate "2019.04.21"]
[EventType "tourn"]
[EventCountry "KAZ"]
[SourceTitle "playchess.com"]
[Source "ChessBase"]
[SourceQuality "1"]
[TimeControl "40/5400+30:1800+30"]

{[%evp 20,114,43,44,32767,32767,39,39,48,50,70,67,64,62,69,54,77,67,87,57,67,45,110,42,133,138,145,140,222,145,159,108,90,57,58,0,0,-44,-48,32767,32767,32767,94,86,100,99,125,132,127,126,122,108,116,93,115,103,97,106,181,177,200,230,252,204,263,317,301,362,355,334,360,318,446,455,445,361,32767,32767,32767,32767,32767,32767,32767,32767,32767,32767,32767,314,279,292,32767,5917,1727,32767,5022,32767,4922]} 1. e4 {[%emt 0:00:00]} d6 {[%emt 0:04:17]} 2. d4 {[%emt 0:00:00]} Nd7 {[%emt 0:00:04]} 3. Nc3 {[%emt 0:01:02]} e5 {[%emt 0:00:45]} 4. Nf3 {[%emt 0:00:24]} exd4 {[%emt 0:00:36]} 5. Nxd4 {[%emt 0:00:14]} g6 {[%emt 0:00:35]} 6. Be2 {[%emt 0:00:13]} Bg7 {[%emt 0:00:41]} 7. Be3 {[%emt 0:00:18]} Ne7 {[%emt 0:03:41]} 8. O-O {[%emt 0:00:10]} Nc6 {[%emt 0:01:31]} 9. Nxc6 {[%emt 0:02:17]} bxc6 {[%emt 0:00:07]} 10. Bd4 {[%emt 0:00:01]} O-O {[%emt 0:03:27]} 11. Bxg7 {[%emt 0:00:04]} Kxg7 {[%emt 0:00:04]} 12. f4 {[%emt 0:00:32]} Qe7 {[%emt 0:03:59]} 13. Bf3 {[%emt 0:04:25]} Rb8 {[%emt 0:01:49]} 14. b3 {[%emt 0:02:56]} Ba6 {[%emt 0:00:37]} 15. Re1 {[%emt 0:00:06]} Kg8 {[%emt 0:11:29]} 16. Qd4 {[%emt 0:00:42]} Rfd8 {[%emt 0:11:47]} 17. Kh1 {[%emt 0:12:18]} ({But not} 17. Qxa7 $2 Nc5 $19) 17... Nb6 {[%emt 0:06:21]} 18. a4 {[%emt 0:01:01]} c5 {[%emt 0:00:05]} 19. Qd2 {[%emt 0:00:08]} c6 {[%emt 0:01:18]} 20. Nd1 {[%emt 0:06:29]} Nd7 {[%emt 0:02:58]} 21. Nf2 {[%emt 0:00:46]} Rb4 {[%emt 0:00:23]} (21... Nf8 $1 $14) 22. Rad1 {[%emt 0:00:31]} Nf8 {[%emt 0:01:15] [#]} 23. f5 $1 {[%emt 0:01:32]} f6 {[%emt 0:02:54]} (23... Rd4 $16 24. Qa5 Bc8) 24. Ng4 {[%emt 0:02:18]} Rd4 {[%emt 0:02:06]} 25. Qa5 {[%emt 0:10:25]} Bc8 {[%emt 0:01:01]} 26. Rxd4 {[%emt 0:00:40]} ({White should try} 26. b4 $16) 26... cxd4 {[%emt 0:00:06]} 27. Qb4 {[%emt 0:00:01]} (27. c3 $16) 27... c5 {[%emt 0:01:17]} 28. Qc4+ {[%emt 0:01:17]} Kg7 {[%emt 0:00:09]} 29. e5 dxe5 {[%emt 0:01:25]} 30. Rxe5 {[%emt 0:00:36] [#]} Qf7 $2 {[%emt 0:06:40]} (30... Qd6 $1 $17 {stays on course.} 31. Rxc5 Bxf5) 31. Qxf7+ {[%emt 0:04:56]} ({Reject} 31. Qxc5 $6 Nd7 $11 {[%mdl 64] Double Attack}) ({Much weaker is} 31. Rxc5 $6 Qxc4 32. Rxc4 Bxf5 $11) 31... Kxf7 {[%emt 0:00:06]} 32. fxg6+ {[%emt 0:00:50]} Kxg6 {[%emt 0:02:29]} 33. Rxc5 {[%emt 0:00:57]} Bf5 {[%emt 0:00:58]} 34. Nf2 {[%emt 0:03:20]} Ne6 {[%emt 0:01:48]} 35. Rc6 {[%emt 0:00:28]} Ng5 {[%emt 0:01:08]} 36. Bg4 {[%emt 0:04:25]} Re8 {[%emt 0:02:49]} 37. Bxf5+ {[%emt 0:01:21]} Kxf5 {[%emt 0:00:07]} 38. h4 {[%emt 0:00:15]} Ne6 {[%emt 0:04:35]} (38... Ne4 $16) 39. Kh2 {[%emt 0:01:34]} Kf4 {[%emt 0:00:28]} 40. b4 {[%emt 0:00:00]} f5 {[%emt 0:00:00]} 41. Nd3+ {[%emt 0:03:16]} Kg4 {[%emt 0:03:02]} 42. b5 {[%emt 0:03:20]} Kxh4 {[%emt 0:05:41]} 43. a5 {[%emt 0:00:06]} Ng5 {[%emt 0:01:29]} 44. b6 {[%emt 0:00:19]} axb6 {[%emt 0:00:05]} 45. axb6 {[%emt 0:00:08]} Ne4 {[%emt 0:02:14]} (45... Rb8 $142 46. Ne5 Ne4 47. Nf3+ Kh5 48. Nxd4 Kg4) 46. b7 {[%emt 0:03:47]} Rb8 {[%emt 0:00:06]} 47. Rh6+ {[%emt 0:00:04]} Kg5 {[%emt 0:00:15]} 48. Rxh7 {[%emt 0:00:05]} Kf6 {[%emt 0:02:59]} 49. Rd7 {[%emt 0:00:43]} Kg5 {[%emt 0:00:53]} 50. g3 {[%emt 0:00:56]} Kf6 {[%emt 0:00:43]} 51. Kg2 {[%emt 0:00:15]} Ke6 {[%emt 0:12:21]} 52. Rxd4 {[%emt 0:00:09]} Ke7 {[%emt 0:00:05]} 53. Rb4 {[%emt 0:01:24]} Kd6 {[%emt 0:00:15]} 54. g4 {[%emt 0:00:51]} Nc5 {[%emt 0:08:14]} 55. Rd4+ {[%emt 0:00:49]} Kc6 {[%emt 0:00:16]} 56. Rc4 {[%emt 0:00:05]} Rxb7 {[%emt 0:00:20]} 57. Rxc5+ {[%emt 0:00:16]} Kd6 $18 {[%emt 0:00:05]} 58. gxf5 {[%emt 0:00:25] Kd5} 1-0

[Event "KAZ-ch Women 2019"]
[Site "Almaty"]
[Date "2019.04.26"]
[Round "6.3"]
[White "Ankudinova, Yelena"]
[Black "Kairbekova, Amina"]
[Result "1/2-1/2"]
[ECO "D02"]
[WhiteElo "2099"]
[BlackElo "1954"]
[Annotator "NA RC"]
[PlyCount "107"]
[EventDate "2019.04.21"]
[EventType "tourn"]
[EventCountry "KAZ"]
[SourceTitle "playchess.com"]
[Source "ChessBase"]
[SourceQuality "1"]
[TimeControl "40/5400+30:1800+30"]

{[%evp 9,107,-1,19,32767,32767,-43,32767,-43,32767,-37,32767,-31,-28,-39,0,-12,0,-11,-5,-43,-23,-21,0,-13,0,32767,0,0,4,0,24,17,27,33,33,29,41,0,0,0,0,-2,30,33,35,47,48,35,43,6,78,74,72,87,64,78,67,82,108,37,33,41,18,9,22,14,17,27,85,32767,88,83,110,108,101,123,151,77,32767,67,77,74,32767,32767,32767,32767,283,8,8,8,0,0,0,0,32767,0,0,0,0,0]} 1. d4 {[%emt 0:00:34]} Nf6 {[%emt 0:00:00]} 2. Nf3 {[%emt 0:00:07]} d5 {[%emt 0:00:00]} 3. Bf4 {[%emt 0:00:51]} c5 {[%emt 0:01:47]} 4. e3 {[%emt 0:00:32]} Nc6 {[%emt 0:00:13]} 5. c3 {[%emt 0:02:02]} Qb6 {[%emt 0:03:15]} 6. Qb3 {[%emt 0:03:30]} c4 {[%emt 0:00:09]} 7. Qc2 {[%emt 0:00:10]} Bf5 {[%emt 0:00:09]} 8. Qc1 {[%emt 0:01:52]} e6 {[%emt 0:00:39]} 9. Nbd2 {[%emt 0:01:39]} h6 {[%emt 0:01:01] D02: 1 d4 d5 2 Nf3 sidelines, including 2...Nf6 3 g3 and 2...Nf6 3 Bf4} (9... Qd8 10. h3 h6 11. Be2 Be7 12. O-O O-O 13. Bd1 b5 14. Bc2 Bxc2 15. Qxc2 Bd6 16. Bxd6 Qxd6 17. e4 dxe4 18. Nxe4 Nxe4 19. Qxe4 Qd5 20. Qxd5 exd5 {1-0 (51) Nisipeanu,L (2674)-Parligras,M (2645) Bucharest 2018}) 10. b3 {[%emt 0:01:57]} cxb3 {[%emt 0:01:23]} 11. axb3 {[%emt 0:00:07]} Be7 {[%emt 0:00:12]} 12. Be2 {[%emt 0:00:52]} O-O {[%emt 0:00:20]} 13. O-O {[%emt 0:01:14]} Nh5 {[%emt 0:01:05]} 14. Bg3 {[%emt 0:08:41]} Nxg3 {[%emt 0:00:07]} 15. hxg3 {[%emt 0:00:21]} Bf6 {[%emt 0:01:28]} 16. Qa3 $146 {[%emt 0:03:40]} ({Predecessor:} 16. b4 Rac8 17. Qa3 {1-0 (42) Zuluaga,C (2305)-Lopez Idarraga,D (2056) Medellin 2017}) 16... e5 {[%emt 0:02:24]} 17. dxe5 {[%emt 0:02:39]} Nxe5 {[%emt 0:00:59]} 18. Nd4 {[%emt 0:00:39]} Bd3 {[%emt 0:04:12]} 19. Qa5 {[%emt 0:07:50]} Bxe2 {[%emt 0:05:10]} 20. Qxb6 {[%emt 0:05:49]} axb6 {[%emt 0:00:14]} 21. Nxe2 {[%emt 0:00:07]} Nc6 {[%emt 0:00:35]} 22. Nf3 {[%emt 0:10:06]} Ra5 {[%emt 0:02:02]} 23. b4 {[%emt 0:05:13]} Rxa1 {[%emt 0:04:39]} 24. Rxa1 {[%emt 0:00:15]} Nxb4 {[%emt 0:00:04]} 25. Ra7 {[%emt 0:13:37]} Na6 {[%emt 0:00:22]} 26. Rxb7 {[%emt 0:00:13]} Rb8 {[%emt 0:00:07]} 27. Ra7 {[%emt 0:04:43]} Nc5 {[%emt 0:00:07]} 28. Nfd4 {[%emt 0:05:26]} Bxd4 {[%emt 0:06:18]} 29. exd4 {[%emt 0:00:10]} Ne4 {[%emt 0:00:04]} (29... Nd3 $11 {keeps the balance.}) 30. f3 {[%emt 0:05:29]} Nf6 {[%emt 0:00:32]} 31. g4 {[%emt 0:00:30]} b5 {[%emt 0:00:47]} 32. Ra2 {[%emt 0:00:12]} Kf8 {[%emt 0:01:39]} 33. Kf2 {[%emt 0:00:03]} Rb7 {[%emt 0:00:07]} 34. Ke3 {[%emt 0:01:21]} ({White should play} 34. Nf4 $16) 34... b4 {[%emt 0:03:06]} 35. Rb2 {[%emt 0:06:07]} Re7+ $1 {[%emt 0:00:09]} 36. Kf4 {[%emt 0:01:33]} bxc3 {[%emt 0:00:43]} 37. Nxc3 {[%emt 0:00:47]} Rc7 {[%emt 0:01:06]} 38. Rb3 {[%emt 0:00:19]} Ke7 {[%emt 0:00:45]} (38... Rc6 $11 {keeps the balance.}) 39. Ke5 {[%emt 0:00:26]} Rd7 {[%emt 0:04:56]} 40. Rb5 {[%emt 0:00:00]} Rc7 {[%emt 0:00:00]} 41. Nxd5+ {[%emt 0:04:00]} Nxd5 {[%emt 0:00:13]} 42. Kxd5 {[%emt 0:00:10]} Rc2 {[%emt 0:00:03]} 43. Rb7+ {[%emt 0:05:25]} Kf6 {[%emt 0:00:04]} 44. Kd6 {[%emt 0:08:52]} Rxg2 {[%emt 0:00:14]} 45. d5 {[%emt 0:00:09]} Rd2 {[%emt 0:08:39]} 46. Rb4 {[%emt 0:01:45]} g5 {[%emt 0:02:05]} 47. Rb3 {[%emt 0:01:29]} Kg6 {[%emt 0:04:47] [#]} 48. Re3 $2 {[%emt 0:00:07]} (48. Rb6 $1 $18 Kg7 49. Kc6) 48... h5 {[%emt 0:00:39]} 49. gxh5+ {[%emt 0:00:07]} Kxh5 {[%emt 0:00:05]} 50. Ke5 {[%emt 0:01:02]} f5 {[%emt 0:01:23]} 51. d6 {[%emt 0:00:19]} Kh4 {[%emt 0:01:12]} 52. Ra3 {[%emt 0:09:51]} g4 {[%emt 0:01:23]} 53. Ra4 {[%emt 0:01:44]} Kh3 {[%emt 0:01:33]} 54. fxg4 $11 {[%emt 0:06:04]} 1/2-1/2

[Event "KAZ-ch Women 2019"]
[Site "Almaty"]
[Date "2019.04.26"]
[Round "6.5"]
[White "Sultanbek, Zeinep"]
[Black "Serikbay, Assel"]
[Result "1-0"]
[ECO "D37"]
[WhiteElo "1891"]
[BlackElo "2155"]
[Annotator "RC"]
[PlyCount "166"]
[EventDate "2019.04.21"]
[EventType "tourn"]
[EventCountry "KAZ"]
[SourceTitle "playchess.com"]
[Source "ChessBase"]
[SourceQuality "1"]
[TimeControl "40/5400+30:1800+30"]

1. d4 {[%emt 0:00:02]} d5 {[%emt 0:00:00]} 2. Nf3 {[%emt 0:00:09]} Nf6 {[%emt 0:00:00]} 3. c4 {[%emt 0:00:07]} e6 {[%emt 0:00:00]} 4. Nc3 {[%emt 0:00:07]} a6 {[%emt 0:00:18]} 5. Bg5 {[%emt 0:03:39]} dxc4 {[%emt 0:19:04]} 6. e4 {[%emt 0:02:38]} h6 {[%emt 0:12:35]} 7. Bxf6 {[%emt 0:00:59]} Qxf6 {[%emt 0:00:18]} 8. Bxc4 {[%emt 0:00:14]} b5 {[%emt 0:02:04]} 9. Bb3 {[%emt 0:00:39]} Bb7 {[%emt 0:10:42]} 10. d5 {[%emt 0:01:29]} e5 {[%emt 0:00:22]} 11. a4 {[%emt 0:01:59]} b4 {[%emt 0:00:59]} 12. Ne2 {[%emt 0:00:11]} a5 {[%emt 0:06:24]} 13. O-O {[%emt 0:02:06]} Bd6 {[%emt 0:00:45]} 14. Nd2 {[%emt 0:01:36]} O-O {[%emt 0:02:41]} 15. Nc4 {[%emt 0:01:20]} Nd7 {[%emt 0:00:13]} 16. Nxd6 {[%emt 0:00:58]} Qxd6 {[%emt 0:05:09]} 17. Rc1 {[%emt 0:02:02]} Rac8 {[%emt 0:01:48]} 18. Ng3 {[%emt 0:01:18]} g6 {[%emt 0:00:54]} 19. Qg4 {[%emt 0:03:00]} Kh7 {[%emt 0:00:42]} 20. Bc4 {[%emt 0:05:06]} Nc5 {[%emt 0:11:21]} 21. b3 {[%emt 0:05:30]} Rcd8 {[%emt 0:00:44]} 22. f4 {[%emt 0:02:25]} exf4 {[%emt 0:01:01]} 23. Rxf4 {[%emt 0:00:09]} Nd7 {[%emt 0:01:55]} 24. Rcf1 {[%emt 0:00:56]} Ne5 {[%emt 0:00:16]} 25. Qe2 {[%emt 0:01:16]} Kg7 {[%emt 0:02:15]} 26. Qb2 {[%emt 0:00:06]} f6 {[%emt 0:01:07]} 27. Ne2 {[%emt 0:00:37]} Bc8 {[%emt 0:07:36]} 28. h3 {[%emt 0:01:54]} c5 {[%emt 0:07:36]} 29. Nc1 {[%emt 0:09:00]} Ba6 {[%emt 0:02:42]} 30. Qe2 {[%emt 0:01:15]} Bc8 {[%emt 0:01:48]} 31. Qf2 {[%emt 0:00:29]} g5 {[%emt 0:00:20]} 32. Qg3 {[%emt 0:02:29]} Kh7 {[%emt 0:00:11]} 33. R4f3 {[%emt 0:00:55]} Nxf3+ {[%emt 0:00:54]} 34. Qxf3 {[%emt 0:00:01]} Rde8 {[%emt 0:00:49]} 35. Nd3 {[%emt 0:00:34]} Qe7 {[%emt 0:01:11]} 36. Re1 {[%emt 0:00:15]} Bb7 37. Qf5+ {[%emt 0:05:06]} Kg7 {[%emt 0:00:32]} 38. Bb5 {[%emt 0:01:07]} Rd8 {[%emt 0:00:21]} 39. Rc1 {[%emt 0:00:33]} Bc8 {[%emt 0:00:52]} 40. Qf3 {[%emt 0:00:00]} Qd6 {[%emt 0:00:00]} 41. Qe3 {[%emt 0:03:42]} f5 {[%emt 0:09:51]} 42. Rxc5 {[%emt 0:02:45]} fxe4 {[%emt 0:00:39]} 43. Qxe4 {[%emt 0:00:07]} Bb7 {[%emt 0:10:35]} 44. Bc6 {[%emt 0:06:49]} Ba6 {[%emt 0:03:05]} 45. Rxa5 {[%emt 0:00:23]} Bxd3 {[%emt 0:02:07]} 46. Qxd3 {[%emt 0:00:13]} Rf7 {[%emt 0:01:05]} 47. Qd4+ {[%emt 0:02:21]} Kg8 {[%emt 0:00:21]} 48. Rc5 {[%emt 0:00:59]} Re7 {[%emt 0:04:16]} 49. Rc1 {[%emt 0:00:38]} Rf8 {[%emt 0:00:25]} 50. Qd3 {[%emt 0:02:39]} Rf6 {[%emt 0:02:50]} 51. Rd1 {[%emt 0:07:37]} Qc5+ {[%emt 0:00:19]} 52. Kh1 {[%emt 0:01:03]} Re3 {[%emt 0:00:20]} 53. Qc4 {[%emt 0:05:46]} Qd6 {[%emt 0:00:26]} 54. Qd4 {[%emt 0:00:32]} Rxb3 {[%emt 0:01:21]} 55. Re1 {[%emt 0:02:25]} Rc3 {[%emt 0:00:11]} 56. Bb5 {[%emt 0:00:57]} Rc2 {[%emt 0:00:38]} 57. Qe4 {[%emt 0:00:14]} Rc7 {[%emt 0:00:27]} 58. a5 {[%emt 0:01:08]} Rf4 {[%emt 0:00:45]} 59. Qd3 {[%emt 0:05:37]} Rc3 {[%emt 0:00:05]} 60. Qd1 {[%emt 0:01:09]} Rc5 {[%emt 0:01:04]} 61. Qd3 {[%emt 0:06:21]} Rc3 {[%emt 0:00:01]} 62. Qe2 {[%emt 0:01:47]} Qxd5 {[%emt 0:00:46]} 63. Qh5 {[%emt 0:02:36]} Rf6 {[%emt 0:00:40]} 64. Be2 {[%emt 0:02:47]} Kg7 {[%emt 0:00:16]} 65. a6 {[%emt 0:02:39]} Ra3 {[%emt 0:00:29]} 66. Rd1 {[%emt 0:00:36]} Qf7 {[%emt 0:00:40]} 67. Qg4 {[%emt 0:00:10]} Rf4 {[%emt 0:00:18]} 68. Qc8 {[%emt 0:00:36]} Rc3 {[%emt 0:00:07]} 69. Qb8 {[%emt 0:01:43]} Rc7 {[%emt 0:00:34]} 70. Qb5 {[%emt 0:00:24]} Re7 {[%emt 0:00:28]} 71. Bd3 {[%emt 0:03:00]} b3 {[%emt 0:00:55]} 72. Rb1 {[%emt 0:00:24]} Rd4 {[%emt 0:00:25]} 73. Bf1 {[%emt 0:01:55]} Rf4 {[%emt 0:00:52]} 74. Bd3 {[%emt 0:00:18]} Rf2 {[%emt 0:00:19]} 75. Qc5 {[%emt 0:01:19]} b2 {[%emt 0:00:37]} 76. Bc4 {[%emt 0:00:35]} Qf6 {[%emt 0:00:39]} 77. a7 {[%emt 0:00:12]} Re8 {[%emt 0:00:23]} 78. Qc7+ {[%emt 0:00:38]} Kf8 {[%emt 0:00:21]} 79. Qh7 {[%emt 0:01:12]} Qg7 {[%emt 0:00:26]} 80. Qxg7+ {[%emt 0:00:26]} Kxg7 {[%emt 0:00:01]} 81. Bd5 {[%emt 0:00:17]} Rc2 {[%emt 0:00:06]} 82. Kh2 {[%emt 0:00:05]} Kf6 83. a8=Q Rxa8 1-0

[Event "KAZ-ch Women 2019"]
[Site "Almaty"]
[Date "2019.04.27"]
[Round "7.2"]
[White "Shauken, Aruzhan"]
[Black "Sultanbek, Zeinep"]
[Result "1/2-1/2"]
[ECO "E63"]
[WhiteElo "1685"]
[BlackElo "1891"]
[Annotator "NA RC"]
[PlyCount "141"]
[EventDate "2019.04.21"]
[EventType "tourn"]
[EventCountry "KAZ"]
[SourceTitle "playchess.com"]
[Source "ChessBase"]
[SourceQuality "1"]
[TimeControl "40/5400+30:1800+30"]

1. d4 {[%emt 0:00:00]} Nf6 {[%emt 0:00:00]} 2. c4 {[%emt 0:00:00]} g6 {[%emt 0:00:00]} 3. Nf3 {[%emt 0:00:20]} Bg7 {[%emt 0:00:00]} 4. g3 {[%emt 0:00:10]} O-O {[%emt 0:00:00]} 5. Bg2 {[%emt 0:00:06]} d6 {[%emt 0:00:00]} 6. O-O {[%emt 0:00:10]} Nc6 {[%emt 0:00:00]} 7. Nc3 {[%emt 0:00:07]} a6 {[%emt 0:00:03]} 8. Qd3 {[%emt 0:00:26]} Nd7 {[%emt 0:00:15]} 9. e4 {[%emt 0:07:12] E63: King's Indian: Fianchetto: Panno Variation with 7...a6} (9. Be3 Rb8 10. Qd2 b5 11. cxb5 axb5 12. Rac1 b4 13. Nd5 Bb7 14. Bg5 Re8 15. Rfd1 Ba8 16. b3 Rb5 17. e4 Qb8 {0-1 (35) Mareco,S (2583)-Flores,D (2602) Buenos Aires 2011}) 9... e5 {[%emt 0:00:28]} 10. d5 {[%emt 0:02:28]} Nc5 $146 {[%emt 0:00:24]} ({Predecessor:} 10... Nd4 11. Be3 Qf6 12. Ne1 c5 13. dxc6 bxc6 14. b4 Qe6 15. Nf3 a5 16. Ng5 Qf6 {0-1 (41) Zozik,S (2252)-Zaibi,A (2389) Baghdad 2018}) 11. Qd1 {[%emt 0:02:48]} Nd4 {[%emt 0:00:09]} 12. b4 {[%emt 0:03:16]} Bg4 {[%emt 0:06:51]} 13. bxc5 {[%emt 0:10:06]} Qf6 {[%emt 0:00:07]} 14. Bg5 {[%emt 0:05:50]} Nxf3+ {[%emt 0:00:17]} 15. Bxf3 {[%emt 0:00:05]} Qxf3 {[%emt 0:00:09]} 16. Qxf3 {[%emt 0:00:26]} Bxf3 {[%emt 0:00:06]} 17. cxd6 {[%emt 0:00:11]} cxd6 {[%emt 0:00:16]} 18. Be7 {[%emt 0:03:18]} Rfc8 {[%emt 0:01:09]} 19. Na4 $1 {[%emt 0:01:43]} Bf8 {[%emt 0:00:11]} 20. Bxf8 {[%emt 0:00:15]} Rxf8 {[%emt 0:00:04]} 21. Nb6 {[%emt 0:02:44]} Rad8 {[%emt 0:00:40]} 22. Rfe1 {[%emt 0:00:12]} f5 {[%emt 0:00:05]} 23. exf5 {[%emt 0:00:28]} Rxf5 {[%emt 0:00:33]} 24. Rab1 {[%emt 0:01:28]} (24. a4 $14) 24... Rf7 {[%emt 0:00:50]} 25. Re3 {[%emt 0:02:24]} Rdf8 {[%emt 0:00:56]} 26. Rb2 {[%emt 0:02:16]} g5 {[%emt 0:01:37]} 27. h3 {[%emt 0:07:43]} g4 {[%emt 0:02:37]} 28. h4 {[%emt 0:01:21]} Rc7 {[%emt 0:00:11]} 29. Rc2 {[%emt 0:02:03]} Rff7 {[%emt 0:06:25]} 30. Rec3 {[%emt 0:09:52]} Rc5 {[%emt 0:01:15]} 31. a3 {[%emt 0:02:36]} Ra5 {[%emt 0:01:01]} 32. Rc1 {[%emt 0:01:17]} Rc7 {[%emt 0:00:59]} 33. Kf1 {[%emt 0:04:07]} Kf7 {[%emt 0:00:41]} 34. Ke1 {[%emt 0:00:55]} Ke7 {[%emt 0:00:05]} 35. Kd2 {[%emt 0:00:38]} Kd8 {[%emt 0:00:18]} 36. Kc2 {[%emt 0:01:21]} Be4+ {[%emt 0:00:59]} 37. Kb3 {[%emt 0:01:07]} Rf7 {[%emt 0:00:23]} 38. Kb4 {[%emt 0:05:39]} Rc5 {[%emt 0:00:11]} 39. Na4 {[%emt 0:00:38]} a5+ {[%emt 0:00:38]} 40. Kb3 {[%emt 0:00:00]} Rcc7 {[%emt 0:00:00]} 41. Re1 {[%emt 0:01:46]} Bg2 {[%emt 0:03:20]} 42. Re2 $1 {[%emt 0:00:50] [#]} Bf1 {[%emt 0:05:13]} ({Black should play} 42... b5 $1 $17 {[%mdl 512]} 43. cxb5 Bxd5+ 44. Kc2 Bc4) 43. Rec2 {[%emt 0:02:27]} b6 {[%emt 0:00:44]} 44. Ka2 {[%emt 0:02:08]} (44. Nb2 $15) 44... Rb7 {[%emt 0:03:14]} 45. Nb2 {[%emt 0:02:29]} Rf3 {[%emt 0:03:53]} 46. Rxf3 {[%emt 0:03:46]} gxf3 {[%emt 0:00:05]} 47. Nd1 {[%emt 0:00:28]} b5 {[%emt 0:06:26]} 48. cxb5 {[%emt 0:01:26]} Bxb5 {[%emt 0:01:39]} 49. Ne3 {[%emt 0:01:13]} Bd3 {[%emt 0:00:10]} 50. Rb2 {[%emt 0:07:16]} Rc7 {[%emt 0:00:10]} 51. Rb8+ {[%emt 0:02:26]} Ke7 {[%emt 0:00:06]} 52. Ra8 {[%emt 0:03:41]} (52. Kb2 $11 {remains equal.}) 52... Rc1 $1 {[%emt 0:00:24]} 53. Rxa5 $2 {[%emt 0:02:00]} (53. h5 $17) 53... Re1 {[%emt 0:00:06]} 54. Ng4 {[%emt 0:01:34]} h5 {[%emt 0:01:23]} 55. Ra7+ {[%emt 0:01:09]} Kd8 {[%emt 0:00:17]} 56. Nh6 {[%emt 0:05:11]} Bc4+ {[%emt 0:00:41]} 57. Kb2 {[%emt 0:00:07]} Bxd5 {[%emt 0:00:04]} 58. g4 {[%emt 0:00:37]} Re2+ {[%emt 0:00:50]} 59. Kc3 {[%emt 0:00:03]} Rxf2 {[%emt 0:00:38]} 60. gxh5 {[%emt 0:00:30]} Rh2 {[%emt 0:00:10]} 61. Nf7+ {[%emt 0:01:31]} Kc8 {[%emt 0:00:36]} 62. h6 {[%emt 0:03:28]} Kb8 {[%emt 0:00:41]} 63. Ra4 {[%emt 0:04:24]} e4 {[%emt 0:03:06]} 64. h7 {[%emt 0:00:08]} Rxh4 {[%emt 0:00:33]} 65. h8=Q+ {[%emt 0:00:17]} Rxh8 {[%emt 0:00:03]} 66. Nxh8 {[%emt 0:00:04]} f2 {[%emt 0:10:20]} 67. Rb4+ {[%emt 0:00:13]} Kc7 $11 {[%emt 0:00:18]} (67... Ka7 $5 68. Rb1 $8 e3 $11) 68. Rb1 {[%emt 0:00:06]} e3 {[%emt 0:08:00]} 69. Kd3 {[%emt 0:00:20]} Be4+ {[%emt 0:00:19]} 70. Kxe3 {[%emt 0:00:06]} Bxb1 {[%emt 0:00:03]} 71. Kxf2 {[%emt 0:00:06]} 1/2-1/2

[Event "KAZ-ch Women 2019"]
[Site "Almaty"]
[Date "2019.04.27"]
[Round "7.3"]
[White "Kairbekova, Amina"]
[Black "Nakhbayeva, Guliskhan"]
[Result "0-1"]
[ECO "B48"]
[WhiteElo "1954"]
[BlackElo "2303"]
[Annotator "NA"]
[PlyCount "104"]
[EventDate "2019.04.21"]
[EventType "tourn"]
[EventCountry "KAZ"]
[SourceTitle "playchess.com"]
[Source "ChessBase"]
[SourceQuality "1"]
[TimeControl "40/5400+30:1800+30"]

{[%evp 9,103,12,58,44,45,29,32767,32767,32767,32767,32767,32767,32767,32767,32767,32767,0,0,10,0,7,0,4,0,6,32767,-22,-58,10,32767,32767,-22,4,32767,32767,0,0,0,0,0,0,0,0,0,0,32767,0,0,0,0,0,-12,32767,-29,-25,32767,32767,32767,32767,32767,32767,32767,32767,32767,-108,-164,-164,32767,32767,32767,32767,32767,32767,-82,0,8,0,-18,32767,-87,32767,32767,32767,32767,32767,32767,32767,-86,-96,32767,-83,-230,32767,32767,-29995,-29999]} 1. e4 {[%emt 0:00:00]} c5 {[%emt 0:00:00]} 2. Nf3 {[%emt 0:00:00]} e6 {[%emt 0:00:01]} 3. d4 {[%emt 0:00:00]} cxd4 {[%emt 0:00:04]} 4. Nxd4 {[%emt 0:00:00]} Nc6 {[%emt 0:00:06]} 5. Nc3 {[%emt 0:00:00]} Qc7 {[%emt 0:00:05]} 6. Be3 {[%emt 0:00:26]} a6 {[%emt 0:00:20]} 7. a3 {[%emt 0:01:10]} Nf6 {[%emt 0:00:51]} 8. Be2 {[%emt 0:02:26]} Be7 {[%emt 0:02:06]} 9. O-O {[%emt 0:00:22]} O-O {[%emt 0:00:04]} 10. f4 {[%emt 0:02:15]} d6 {[%emt 0:01:32]} 11. Kh1 {[%emt 0:01:25]} Bd7 {[%emt 0:06:56]} 12. Bf3 {[%emt 0:01:11] B48: Sicilian: Taimanov: 5 Nc3 Qc7 6 Be3 a6 without Be2} (12. Qe1 Nxd4 13. Bxd4 Bc6 14. Qg3 g6 15. f5 e5 16. Be3 Kh8 17. Bg5 Nh5 18. Bxh5 Bxg5 19. Qxg5 f6 20. Qh6 gxh5 21. Rad1 Rad8 22. Rf3 Qg7 23. Qxh5 {1-0 (48) Matinian,N (2496)-Pridorozhni,A (2589) Voronezh 2018}) 12... Nxd4 {[%emt 0:02:06]} 13. Bxd4 {[%emt 0:00:09]} Bc6 {[%emt 0:00:33]} 14. Qe1 {[%emt 0:02:52]} e5 {[%emt 0:03:40]} 15. Be3 {[%emt 0:02:56]} exf4 {[%emt 0:03:33]} 16. Bxf4 {[%emt 0:00:06]} Nd7 {[%emt 0:00:03]} 17. g3 $146 {[%emt 0:06:56]} ({Predecessor:} 17. Qg3 Ne5 18. Rad1 Rad8 19. Rd4 b5 20. Be2 {1-0 (53) Can,I (1795)-Matus,N (1761) Porto Carras 2015}) 17... Rfe8 {[%emt 0:07:14]} 18. Bg2 {[%emt 0:02:06]} Bf8 {[%emt 0:04:34]} (18... Bf6 $15) 19. Qf2 {[%emt 0:00:44]} Ne5 {[%emt 0:01:43]} 20. Rfd1 {[%emt 0:04:09]} g6 {[%emt 0:05:49]} 21. Nd5 {[%emt 0:06:01]} Bxd5 {[%emt 0:00:05]} 22. Rxd5 {[%emt 0:00:07]} Ng4 {[%emt 0:08:19]} 23. Qd2 {[%emt 0:09:20]} Qb6 {[%emt 0:08:31]} 24. Qd4 {[%emt 0:06:14]} Qc6 {[%emt 0:02:06]} 25. c3 {[%emt 0:02:44]} (25. h3 $5 {[%cal Rh3g4]} Ne5 26. c4 $11) 25... Rad8 {[%emt 0:10:46]} 26. Rd1 {[%emt 0:11:41]} Bg7 {[%emt 0:01:55]} 27. Qg1 {[%emt 0:00:06]} Be5 {[%emt 0:07:52]} 28. Bxe5 {[%emt 0:07:30]} Nxe5 {[%emt 0:00:36]} 29. Qf2 {[%emt 0:00:23]} Qc7 {[%emt 0:08:02]} 30. Rf1 {[%emt 0:05:06]} Nc4 {[%emt 0:02:47]} 31. h4 {[%emt 0:03:19]} Re5 {[%emt 0:01:41]} 32. g4 {[%emt 0:07:19]} Rde8 {[%emt 0:02:11]} 33. Rd4 {[%emt 0:01:00]} Rb5 {[%emt 0:03:21]} 34. a4 {[%emt 0:03:15]} Rbe5 {[%emt 0:00:36]} 35. Qe2 {[%emt 0:03:32]} d5 {[%emt 0:01:23]} 36. Qd3 {[%emt 0:02:44]} Nxb2 {[%emt 0:00:15]} 37. Qc2 {[%emt 0:00:00]} Nc4 {[%emt 0:00:21]} 38. Qd3 {[%emt 0:01:55]} b5 {[%emt 0:03:38]} 39. axb5 {[%emt 0:00:21]} axb5 {[%emt 0:00:02]} 40. Rxd5 {[%emt 0:00:00]} Qe7 {[%emt 0:00:00]} 41. g5 {[%emt 0:03:25]} h6 {[%emt 0:09:09]} ({Black should play} 41... Rxd5 $17 42. exd5 {[#]} h6 $1 {[%mdl 512]}) 42. Rd7 {[%emt 0:01:00]} Qf8 {[%emt 0:04:36]} 43. gxh6 {[%emt 0:09:22]} Qxh6 {[%emt 0:02:27]} 44. Rdxf7 {[%emt 0:03:59]} (44. Rfxf7 $11 Qxh4+ 45. Qh3 Qxh3+ 46. Bxh3) 44... Qxh4+ {[%emt 0:03:33]} 45. Kg1 {[%emt 0:00:05]} Rh5 {[%emt 0:04:04]} 46. Qd7 {[%emt 0:02:22]} Qh2+ {[%emt 0:03:52]} 47. Kf2 {[%emt 0:00:06]} Nd6 {[%emt 0:00:09]} 48. Rg7+ {[%emt 0:20:15]} Kh8 {[%emt 0:00:16]} 49. Rxg6 {[%emt 0:01:06]} Nxe4+ {[%emt 0:01:09] Double Attack} 50. Kf3 {[%emt 0:00:37]} (50. Ke3 $17 Qe5 51. Qd4 Ng3+ 52. Kd3 Nxf1 53. Bxf1) 50... Qe5 {[%emt 0:00:49]} 51. Rh1 {[%emt 0:00:44]} Rf8+ {[%emt 0:01:34]} 52. Kg4 {[%emt 0:00:34]} Nf2# {[%emt 0:00:10]} 0-1